[Event "Titled Tuesday Blitz August 16 Late 2022"]
[White "So, Wesley"]
[Black "Naroditsky, Daniel"]
[WhiteFideId "5202213"]
[BlackFideId "2026961"]
[WhiteElo "2763"]
[BlackElo "2628"]
[Result "0-1"]
[Round "09"]
[TimeControl "180+1"]
[Date "2022.08.16"]
[WhiteClock "0:00:03"]
[BlackClock "0:00:15"]

1. e4 {[%clk 0:03:00]}  e5 {[%clk 0:02:55]} 2. Nf3 {[%clk 0:03:01]}  Nc6 {[%clk 0:02:53]} 3. Bc4 {[%clk 0:03:01]}  Nf6 {[%clk 0:02:51]} 4. d3 {[%clk 0:03:02]}  h6 {[%clk 0:02:51]} 5. O-O {[%clk 0:03:02]}  d6 {[%clk 0:02:46]} 6. c3 {[%clk 0:03:00]}  g5 {[%clk 0:02:42]} 7. Nbd2 {[%clk 0:02:54]}  Bg7 {[%clk 0:02:40]} 8. Bb3 {[%clk 0:02:49]}  g4 {[%clk 0:02:36]} 9. Ne1 {[%clk 0:02:46]}  h5 {[%clk 0:02:36]} 10. f4 {[%clk 0:02:44]}  exf4 {[%clk 0:02:10]} 11. Rxf4 {[%clk 0:02:45]}  Qe7 {[%clk 0:02:10]} 12. d4 {[%clk 0:02:38]}  Bd7 {[%clk 0:02:06]} 13. Nd3 {[%clk 0:02:32]}  O-O-O {[%clk 0:02:05]} 14. Rf1 {[%clk 0:02:19]}  Rdf8 {[%clk 0:01:55]} 15. Qe2 {[%clk 0:02:18]}  g3 {[%clk 0:01:49]} 16. h3 {[%clk 0:02:17]}  Re8 {[%clk 0:01:38]} 17. Nf4 {[%clk 0:01:54]}  h4 {[%clk 0:01:35]} 18. Qd3 {[%clk 0:01:45]}  Bh6 {[%clk 0:01:28]} 19. Bc2 {[%clk 0:01:15]}  Kb8 {[%clk 0:01:25]} 20. b4 {[%clk 0:01:15]}  Nd8 {[%clk 0:01:17]} 21. a4 {[%clk 0:00:59]}  Bxf4 {[%clk 0:01:11]} 22. Rxf4 {[%clk 0:01:00]}  Ne6 {[%clk 0:01:11]} 23. Rf1 {[%clk 0:00:35]}  Ng5 {[%clk 0:01:11]} 24. Rf4 {[%clk 0:00:36]}  Bxh3 {[%clk 0:01:01]} 25. Nf3 {[%clk 0:00:27]}  Bxg2 {[%clk 0:00:39]} 26. Nxg5 {[%clk 0:00:26]}  h3 {[%clk 0:00:37]} 27. Bd2 {[%clk 0:00:13]}  Reg8 {[%clk 0:00:31]} 28. Nf3 {[%clk 0:00:05]}  Ng4 {[%clk 0:00:25]} 29. Rxg4 {[%clk 0:00:03]}  Rxg4 {[%clk 0:00:26]} 30. e5 {[%clk 0:00:03]}  dxe5 {[%clk 0:00:20]} 31. Nxe5 {[%clk 0:00:04]}  Bd5 {[%clk 0:00:16]} 32. Nxg4 {[%clk 0:00:02]}  h2+ {[%clk 0:00:16]} 33. Nxh2 {[%clk 0:00:02]}  gxh2+ {[%clk 0:00:15]} 34. Kf2 {[%clk 0:00:03]}  h1=Q {[%clk 0:00:15]} 0-1


[Site "https://www.chess.com"]

[Event "Titled Tuesday Blitz August 16 Late 2022"]
[White "Stanojoski, Zvonko"]
[Black "Martin Barcelo, Carles"]
[WhiteFideId "15000257"]
[BlackFideId "24561444"]
[WhiteElo "2364"]
[BlackElo "1922"]
[Result "0-1"]
[Round "09"]
[TimeControl "180+1"]
[Date "2022.08.18"]
[WhiteClock "0:00:00"]
[BlackClock "0:00:00"]

1. e4 {[%clk 0:00:00]}  e6 {[%clk 0:00:00]} 2. d4 {[%clk 0:00:00]}  d5 {[%clk 0:00:00]} 3. Nd2 {[%clk 0:00:00]}  dxe4 {[%clk 0:00:00]} 4. Nxe4 {[%clk 0:00:00]}  Nd7 {[%clk 0:00:00]} 5. Nf3 {[%clk 0:00:00]}  Ngf6 {[%clk 0:00:00]} 6. Nxf6+ {[%clk 0:00:00]}  Nxf6 {[%clk 0:00:00]} 7. Bd3 {[%clk 0:00:00]}  Be7 {[%clk 0:00:00]} 8. Qe2 {[%clk 0:00:00]}  O-O {[%clk 0:00:00]} 9. Bg5 {[%clk 0:00:00]}  Nd5 {[%clk 0:00:00]} 10. Bxe7 {[%clk 0:00:00]}  Qxe7 {[%clk 0:00:00]} 11. O-O-O {[%clk 0:00:00]}  Nf4 {[%clk 0:00:00]} 12. Qe4 {[%clk 0:00:00]}  Nxd3+ {[%clk 0:00:00]} 13. Rxd3 {[%clk 0:00:00]}  Bd7 {[%clk 0:00:00]} 14. d5 {[%clk 0:00:00]}  Qf6 {[%clk 0:00:00]} 15. Ne5 {[%clk 0:00:00]}  Rad8 {[%clk 0:00:00]} 16. Nxd7 {[%clk 0:00:00]}  Rxd7 {[%clk 0:00:00]} 17. dxe6 {[%clk 0:00:00]}  Rxd3 {[%clk 0:00:00]} 18. Qxd3 {[%clk 0:00:00]}  Qxe6 {[%clk 0:00:00]} 19. Kb1 {[%clk 0:00:00]}  Qe5 {[%clk 0:00:00]} 20. a3 {[%clk 0:00:00]}  c6 {[%clk 0:00:00]} 21. h3 {[%clk 0:00:00]}  h6 {[%clk 0:00:00]} 22. Rd1 {[%clk 0:00:00]}  Re8 {[%clk 0:00:00]} 23. Qd7 {[%clk 0:00:00]}  Qe7 {[%clk 0:00:00]} 24. Qxe7 {[%clk 0:00:00]}  Rxe7 {[%clk 0:00:00]} 25. Kc1 {[%clk 0:00:00]}  f5 {[%clk 0:00:00]} 26. Rd8+ {[%clk 0:00:00]}  Kf7 {[%clk 0:00:00]} 27. Kd2 {[%clk 0:00:00]}  Ke6 {[%clk 0:00:00]} 28. Ke3 {[%clk 0:00:00]}  Ke5 {[%clk 0:00:00]} 29. g3 {[%clk 0:00:00]}  g5 {[%clk 0:00:00]} 30. Rh8 {[%clk 0:00:00]}  Kf6+ {[%clk 0:00:00]} 31. Kf3 {[%clk 0:00:00]}  Kg7 {[%clk 0:00:00]} 32. Rb8 {[%clk 0:00:00]}  Rd7 {[%clk 0:00:00]} 33. h4 {[%clk 0:00:00]}  Kg6 {[%clk 0:00:00]} 34. hxg5 {[%clk 0:00:00]}  hxg5 {[%clk 0:00:00]} 35. Ke2 {[%clk 0:00:00]}  Kf6 {[%clk 0:00:00]} 36. f4 {[%clk 0:00:00]}  b6 {[%clk 0:00:00]} 37. Rf8+ {[%clk 0:00:00]}  Ke6 {[%clk 0:00:00]} 38. fxg5 {[%clk 0:00:00]}  Rg7 {[%clk 0:00:00]} 39. Rf6+ {[%clk 0:00:00]}  Ke5 {[%clk 0:00:00]} 40. Rxc6 {[%clk 0:00:00]}  Rxg5 {[%clk 0:00:00]} 41. Kf3 {[%clk 0:00:00]}  Rg7 {[%clk 0:00:00]} 42. Rc3 {[%clk 0:00:00]}  Rd7 {[%clk 0:00:00]} 43. Re3+ {[%clk 0:00:00]}  Kf6 {[%clk 0:00:00]} 44. Rd3 {[%clk 0:00:00]}  Rc7 {[%clk 0:00:00]} 45. c3 {[%clk 0:00:00]}  Ke5 {[%clk 0:00:00]} 46. Re3+ {[%clk 0:00:00]}  Kf6 {[%clk 0:00:00]} 47. b3 {[%clk 0:00:00]}  Rd7 {[%clk 0:00:00]} 48. Ke2 {[%clk 0:00:00]}  Rh7 {[%clk 0:00:00]} 49. Kd3 {[%clk 0:00:00]}  Rh3 {[%clk 0:00:00]} 50. Kd4 {[%clk 0:00:00]}  Rh1 {[%clk 0:00:00]} 51. a4 {[%clk 0:00:00]}  Ra1 {[%clk 0:00:00]} 52. Kc4 {[%clk 0:00:00]}  a6 {[%clk 0:00:00]} 53. Rd3 {[%clk 0:00:00]}  Ke5 {[%clk 0:00:00]} 54. Rd5+ {[%clk 0:00:00]}  Ke6 {[%clk 0:00:00]} 55. Rd3 {[%clk 0:00:00]}  Rh1 {[%clk 0:00:00]} 56. Kb4 {[%clk 0:00:00]}  Rh3 {[%clk 0:00:00]} 57. Kc4 {[%clk 0:00:00]}  Ke5 {[%clk 0:00:00]} 58. Re3+ {[%clk 0:00:00]}  Kf6 {[%clk 0:00:00]} 59. Kd4 {[%clk 0:00:00]}  Rh1 {[%clk 0:00:00]} 60. c4 {[%clk 0:00:00]}  Rd1+ {[%clk 0:00:00]} 61. Rd3 {[%clk 0:00:00]}  Rc1 {[%clk 0:00:00]} 62. Rc3 {[%clk 0:00:00]}  Rd1+ {[%clk 0:00:00]} 63. Ke3 {[%clk 0:00:00]}  Rg1 {[%clk 0:00:00]} 64. Kf2 {[%clk 0:00:00]}  Rb1 {[%clk 0:00:00]} 65. Kf3 {[%clk 0:00:00]}  Rf1+ {[%clk 0:00:00]} 66. Ke2 {[%clk 0:00:00]}  Rb1 {[%clk 0:00:00]} 67. Re3 {[%clk 0:00:00]}  Rb2+ {[%clk 0:00:00]} 68. Kf3 {[%clk 0:00:00]}  Rb1 {[%clk 0:00:00]} 69. Rd3 {[%clk 0:00:00]}  Ke5 {[%clk 0:00:00]} 70. Ke3 {[%clk 0:00:00]}  Re1+ {[%clk 0:00:00]} 71. Kd2 {[%clk 0:00:00]}  Rg1 {[%clk 0:00:00]} 72. Kc3 {[%clk 0:00:00]}  Rh1 {[%clk 0:00:00]} 73. c5 {[%clk 0:00:00]}  Rc1+ {[%clk 0:00:00]} 74. Kd2 {[%clk 0:00:00]}  Rxc5 {[%clk 0:00:00]} 75. Ke3 {[%clk 0:00:00]}  Rc1 {[%clk 0:00:00]} 76. Kf3 {[%clk 0:00:00]}  Rf1+ {[%clk 0:00:00]} 77. Ke2 {[%clk 0:00:00]}  Rb1 {[%clk 0:00:00]} 78. Kf3 {[%clk 0:00:00]}  Rb2 {[%clk 0:00:00]} 79. Ke3 {[%clk 0:00:00]}  Rg2 {[%clk 0:00:00]} 80. Kf3 {[%clk 0:00:00]}  Rh2 {[%clk 0:00:00]} 81. Re3+ {[%clk 0:00:00]}  Kf6 {[%clk 0:00:00]} 82. Rc3 {[%clk 0:00:00]}  Rh6 {[%clk 0:00:00]} 83. Rc6+ {[%clk 0:00:00]}  Kg5 {[%clk 0:00:00]} 84. Rxh6 {[%clk 0:00:00]}  Kxh6 {[%clk 0:00:00]} 85. Kf4 {[%clk 0:00:00]}  Kg6 {[%clk 0:00:00]} 86. b4 {[%clk 0:00:00]}  Kf6 {[%clk 0:00:00]} 0-1


[Site "https://www.chess.com"]

[Event "Titled Tuesday Blitz August 16 Late 2022"]
[White "Thomforde-Toates, Noah"]
[Black "Proudian, Armen"]
[WhiteFideId "30951992"]
[BlackFideId "2130734"]
[WhiteElo "2622"]
[BlackElo "2380"]
[Result "0-1"]
[Round "09"]
[TimeControl "180+1"]
[Date "2022.08.16"]
[WhiteClock "0:00:21"]
[BlackClock "0:00:17"]

1. d4 {[%clk 0:03:00]}  Nf6 {[%clk 0:02:51]} 2. Nc3 {[%clk 0:03:00]}  d5 {[%clk 0:02:51]} 3. Bf4 {[%clk 0:03:00]}  c5 {[%clk 0:02:49]} 4. e3 {[%clk 0:03:00]}  cxd4 {[%clk 0:02:49]} 5. exd4 {[%clk 0:03:01]}  a6 {[%clk 0:02:49]} 6. Nf3 {[%clk 0:03:01]}  Bg4 {[%clk 0:02:47]} 7. h3 {[%clk 0:03:01]}  Bh5 {[%clk 0:02:25]} 8. g4 {[%clk 0:02:58]}  Bg6 {[%clk 0:02:23]} 9. Bd3 {[%clk 0:02:58]}  Nc6 {[%clk 0:02:18]} 10. Ne5 {[%clk 0:02:55]}  Bxd3 {[%clk 0:02:10]} 11. Qxd3 {[%clk 0:02:55]}  e6 {[%clk 0:02:08]} 12. a3 {[%clk 0:02:53]}  Nxe5 {[%clk 0:02:06]} 13. Bxe5 {[%clk 0:02:53]}  Bd6 {[%clk 0:02:05]} 14. Bxd6 {[%clk 0:02:50]}  Qxd6 {[%clk 0:02:02]} 15. Qe3 {[%clk 0:02:49]}  h5 {[%clk 0:01:56]} 16. g5 {[%clk 0:02:49]}  Nd7 {[%clk 0:01:56]} 17. h4 {[%clk 0:02:49]}  O-O-O {[%clk 0:01:54]} 18. O-O-O {[%clk 0:02:47]}  Kb8 {[%clk 0:01:54]} 19. Rde1 {[%clk 0:02:44]}  g6 {[%clk 0:01:54]} 20. Qg3 {[%clk 0:02:43]}  Nb6 {[%clk 0:01:52]} 21. Qxd6+ {[%clk 0:02:42]}  Rxd6 {[%clk 0:01:53]} 22. Nb1 {[%clk 0:02:39]}  Rc8 {[%clk 0:01:53]} 23. b3 {[%clk 0:02:36]}  Rdc6 {[%clk 0:01:51]} 24. c3 {[%clk 0:02:33]}  a5 {[%clk 0:01:46]} 25. a4 {[%clk 0:02:33]}  R8c7 {[%clk 0:01:34]} 26. Kd2 {[%clk 0:02:29]}  Nc8 {[%clk 0:01:34]} 27. f3 {[%clk 0:02:21]}  Nd6 {[%clk 0:01:33]} 28. Rc1 {[%clk 0:02:19]}  Nf5 {[%clk 0:01:32]} 29. Kd3 {[%clk 0:02:15]}  Rb6 {[%clk 0:01:31]} 30. Nd2 {[%clk 0:02:10]}  Ka7 {[%clk 0:01:29]} 31. Rb1 {[%clk 0:02:02]}  Ka6 {[%clk 0:01:27]} 32. b4 {[%clk 0:01:58]}  axb4 {[%clk 0:01:26]} 33. cxb4 {[%clk 0:01:59]}  Ka7 {[%clk 0:01:25]} 34. b5 {[%clk 0:01:59]}  Rd6 {[%clk 0:01:24]} 35. a5 {[%clk 0:01:58]}  b6 {[%clk 0:01:24]} 36. a6 {[%clk 0:01:58]}  Rd8 {[%clk 0:01:24]} 37. Rbc1 {[%clk 0:01:54]}  Rdc8 {[%clk 0:01:20]} 38. Rxc7+ {[%clk 0:01:53]}  Rxc7 {[%clk 0:01:21]} 39. f4 {[%clk 0:01:48]}  Ng3 {[%clk 0:01:17]} 40. Rh3 {[%clk 0:01:44]}  Nf5 {[%clk 0:01:18]} 41. Rh1 {[%clk 0:01:37]}  Nd6 {[%clk 0:01:18]} 42. Rb1 {[%clk 0:01:36]}  Kb8 {[%clk 0:01:12]} 43. Nf3 {[%clk 0:01:34]}  Nf5 {[%clk 0:01:09]} 44. Rh1 {[%clk 0:01:19]}  Rc4 {[%clk 0:00:56]} 45. Ra1 {[%clk 0:00:49]}  Ka8 {[%clk 0:00:39]} 46. Ne5 {[%clk 0:00:41]}  Rxd4+ {[%clk 0:00:39]} 47. Kc3 {[%clk 0:00:41]}  Rxf4 {[%clk 0:00:39]} 48. a7 {[%clk 0:00:37]}  Nd6 {[%clk 0:00:39]} 49. Nd7 {[%clk 0:00:35]}  Nxb5+ {[%clk 0:00:39]} 50. Kd3 {[%clk 0:00:35]}  Nxa7 {[%clk 0:00:40]} 51. Nxb6+ {[%clk 0:00:34]}  Kb7 {[%clk 0:00:39]} 52. Nd7 {[%clk 0:00:35]}  Nc6 {[%clk 0:00:38]} 53. Nf6 {[%clk 0:00:33]}  Rxh4 {[%clk 0:00:37]} 54. Rb1+ {[%clk 0:00:33]}  Rb4 {[%clk 0:00:36]} 55. Rf1 {[%clk 0:00:32]}  Ne5+ {[%clk 0:00:32]} 56. Kc3 {[%clk 0:00:32]}  Rc4+ {[%clk 0:00:33]} 57. Kb3 {[%clk 0:00:32]}  Kc6 {[%clk 0:00:32]} 58. Ra1 {[%clk 0:00:30]}  h4 {[%clk 0:00:31]} 59. Rh1 {[%clk 0:00:29]}  Nf3 {[%clk 0:00:29]} 60. Ra1 {[%clk 0:00:23]}  Nxg5 {[%clk 0:00:29]} 61. Ra6+ {[%clk 0:00:23]}  Kb7 {[%clk 0:00:29]} 62. Rd6 {[%clk 0:00:22]}  h3 {[%clk 0:00:28]} 63. Rd8 {[%clk 0:00:21]}  Rc8 {[%clk 0:00:27]} 64. Rd7+ {[%clk 0:00:21]}  Kc6 {[%clk 0:00:27]} 65. Ra7 {[%clk 0:00:21]}  h2 {[%clk 0:00:26]} 66. Ra1 {[%clk 0:00:21]}  Rh8 {[%clk 0:00:24]} 67. Rh1 {[%clk 0:00:21]}  e5 {[%clk 0:00:22]} 68. Ng4 {[%clk 0:00:20]}  Kd6 {[%clk 0:00:21]} 69. Nxh2 {[%clk 0:00:19]}  Nf3 {[%clk 0:00:20]} 70. Rf1 {[%clk 0:00:19]}  Nxh2 {[%clk 0:00:19]} 71. Rxf7 {[%clk 0:00:20]}  Kc5 {[%clk 0:00:19]} 72. Rc7+ {[%clk 0:00:20]}  Kd4 {[%clk 0:00:19]} 73. Rg7 {[%clk 0:00:21]}  Rb8+ {[%clk 0:00:20]} 74. Kc2 {[%clk 0:00:21]}  Rb6 {[%clk 0:00:19]} 75. Rf7 {[%clk 0:00:21]}  e4 {[%clk 0:00:19]} 76. Rf2 {[%clk 0:00:20]}  Nf3 {[%clk 0:00:19]} 77. Rg2 {[%clk 0:00:21]}  g5 {[%clk 0:00:18]} 78. Rg4 {[%clk 0:00:21]}  Ke3 {[%clk 0:00:19]} 79. Kd1 {[%clk 0:00:21]}  d4 {[%clk 0:00:18]} 80. Rg2 {[%clk 0:00:20]}  d3 {[%clk 0:00:18]} 81. Kc1 {[%clk 0:00:20]}  Rc6+ {[%clk 0:00:18]} 82. Kb1 {[%clk 0:00:20]}  d2 {[%clk 0:00:17]} 83. Rxd2 {[%clk 0:00:20]}  Nxd2+ {[%clk 0:00:17]} 84. Ka1 {[%clk 0:00:21]}  Kd3 {[%clk 0:00:17]} 85. Ka2 {[%clk 0:00:20]}  Kc3 {[%clk 0:00:17]} 86. Ka1 {[%clk 0:00:21]}  Kc2 {[%clk 0:00:16]} 87. Ka2 {[%clk 0:00:21]}  Ra6# {[%clk 0:00:17]} 0-1


[Site "https://www.chess.com"]

[Event "Titled Tuesday Blitz August 16 Late 2022"]
[White "Uskov, Artem"]
[Black "Bogaudinov, Rushan"]
[WhiteFideId "34254854"]
[BlackFideId "4129288"]
[WhiteElo "2335"]
[BlackElo "2040"]
[Result "1-0"]
[Round "09"]
[TimeControl "180+1"]
[Date "2022.08.16"]
[WhiteClock "0:02:00"]
[BlackClock "0:01:47"]

1. e4 {[%clk 0:03:00]}  c5 {[%clk 0:02:58]} 2. Nf3 {[%clk 0:02:59]}  d6 {[%clk 0:02:57]} 3. d4 {[%clk 0:02:58]}  cxd4 {[%clk 0:02:57]} 4. Nxd4 {[%clk 0:02:59]}  Nf6 {[%clk 0:02:58]} 5. Nc3 {[%clk 0:02:58]}  a6 {[%clk 0:02:58]} 6. Bg5 {[%clk 0:02:57]}  Nbd7 {[%clk 0:02:57]} 7. f4 {[%clk 0:02:53]}  Qc7 {[%clk 0:02:56]} 8. Qf3 {[%clk 0:02:45]}  h6 {[%clk 0:02:55]} 9. Bh4 {[%clk 0:02:44]}  e5 {[%clk 0:02:45]} 10. Nf5 {[%clk 0:02:34]}  g6 {[%clk 0:02:43]} 11. Ne3 {[%clk 0:02:33]}  exf4 {[%clk 0:02:34]} 12. Ned5 {[%clk 0:02:25]}  Nxd5 {[%clk 0:02:32]} 13. Nxd5 {[%clk 0:02:26]}  Qa5+ {[%clk 0:02:30]} 14. b4 {[%clk 0:02:22]}  Ne5 {[%clk 0:02:19]} 15. bxa5 {[%clk 0:02:17]}  Nxf3+ {[%clk 0:02:19]} 16. gxf3 {[%clk 0:02:18]}  Rb8 {[%clk 0:02:14]} 17. O-O-O {[%clk 0:02:12]}  g5 {[%clk 0:02:04]} 18. Bf2 {[%clk 0:02:07]}  Bd7 {[%clk 0:01:57]} 19. Bd4 {[%clk 0:02:04]}  f6 {[%clk 0:01:47]} 20. Nxf6+ {[%clk 0:02:00]} 1-0


[Site "https://www.chess.com"]

[Event "Titled Tuesday Blitz August 16 Late 2022"]
[White "Vasquez Schroeder, Rodrigo"]
[Black "Badmatsyrenov, Oleg"]
[WhiteFideId "3400042"]
[BlackFideId "24115762"]
[WhiteElo "2567"]
[BlackElo "2403"]
[Result "1-0"]
[Round "09"]
[TimeControl "180+1"]
[Date "2022.08.16"]
[WhiteClock "0:00:12"]
[BlackClock "0:00:04"]

1. e4 {[%clk 0:03:00]}  c5 {[%clk 0:02:54]} 2. Nf3 {[%clk 0:03:00]}  e6 {[%clk 0:02:54]} 3. d4 {[%clk 0:03:00]}  cxd4 {[%clk 0:02:54]} 4. Nxd4 {[%clk 0:03:01]}  a6 {[%clk 0:02:54]} 5. Bd3 {[%clk 0:03:01]}  Bc5 {[%clk 0:02:52]} 6. Nb3 {[%clk 0:03:01]}  Be7 {[%clk 0:02:52]} 7. Qg4 {[%clk 0:02:55]}  g6 {[%clk 0:02:52]} 8. Qe2 {[%clk 0:02:55]}  d6 {[%clk 0:02:52]} 9. Na3 {[%clk 0:02:52]}  Nc6 {[%clk 0:02:48]} 10. Nc4 {[%clk 0:02:48]}  b5 {[%clk 0:02:46]} 11. Ne3 {[%clk 0:02:48]}  Nf6 {[%clk 0:02:43]} 12. a4 {[%clk 0:02:48]}  b4 {[%clk 0:02:39]} 13. a5 {[%clk 0:02:44]}  O-O {[%clk 0:02:36]} 14. Nc4 {[%clk 0:02:44]}  Bb7 {[%clk 0:01:59]} 15. O-O {[%clk 0:02:32]}  d5 {[%clk 0:01:48]} 16. Nb6 {[%clk 0:02:26]}  Rb8 {[%clk 0:01:01]} 17. exd5 {[%clk 0:01:48]}  Nxd5 {[%clk 0:01:00]} 18. Nc4 {[%clk 0:01:36]}  Qc7 {[%clk 0:00:47]} 19. Be4 {[%clk 0:01:29]}  Rfd8 {[%clk 0:00:37]} 20. g3 {[%clk 0:01:28]}  Bf6 {[%clk 0:00:24]} 21. Rd1 {[%clk 0:01:21]}  Ne5 {[%clk 0:00:19]} 22. Nxe5 {[%clk 0:01:00]}  Bxe5 {[%clk 0:00:19]} 23. Re1 {[%clk 0:00:56]}  Bf6 {[%clk 0:00:14]} 24. Rb1 {[%clk 0:00:49]}  Rbc8 {[%clk 0:00:14]} 25. Qf3 {[%clk 0:00:46]}  Bg7 {[%clk 0:00:12]} 26. Bg5 {[%clk 0:00:40]}  Re8 {[%clk 0:00:11]} 27. Qe2 {[%clk 0:00:36]}  Qc4 {[%clk 0:00:11]} 28. Qxc4 {[%clk 0:00:30]}  Rxc4 {[%clk 0:00:12]} 29. Bd3 {[%clk 0:00:31]}  Rc7 {[%clk 0:00:11]} 30. Bd2 {[%clk 0:00:28]}  Rec8 {[%clk 0:00:11]} 31. Rec1 {[%clk 0:00:24]}  h5 {[%clk 0:00:11]} 32. h4 {[%clk 0:00:23]}  Nf6 {[%clk 0:00:11]} 33. Bxb4 {[%clk 0:00:22]}  Ng4 {[%clk 0:00:11]} 34. Bd6 {[%clk 0:00:22]}  Rd7 {[%clk 0:00:11]} 35. Bc5 {[%clk 0:00:19]}  Ne5 {[%clk 0:00:11]} 36. Be2 {[%clk 0:00:18]}  Nf3+ {[%clk 0:00:11]} 37. Bxf3 {[%clk 0:00:16]}  Bxf3 {[%clk 0:00:10]} 38. Be3 {[%clk 0:00:17]}  Rb7 {[%clk 0:00:09]} 39. Nc5 {[%clk 0:00:17]}  Rb5 {[%clk 0:00:08]} 40. b4 {[%clk 0:00:17]}  Bc3 {[%clk 0:00:07]} 41. Nd3 {[%clk 0:00:16]}  Rcb8 {[%clk 0:00:05]} 42. Bb6 {[%clk 0:00:16]}  Bd5 {[%clk 0:00:05]} 43. Kf1 {[%clk 0:00:14]}  Rc8 {[%clk 0:00:05]} 44. Ke2 {[%clk 0:00:14]}  Bc4 {[%clk 0:00:05]} 45. Ke3 {[%clk 0:00:13]}  Rd5 {[%clk 0:00:05]} 46. Bc5 {[%clk 0:00:12]}  f5 {[%clk 0:00:03]} 47. Rd1 {[%clk 0:00:12]}  e5 {[%clk 0:00:03]} 48. f3 {[%clk 0:00:12]}  Rcd8 {[%clk 0:00:03]} 49. Nf2 {[%clk 0:00:13]}  f4+ {[%clk 0:00:03]} 50. gxf4 {[%clk 0:00:12]}  exf4+ {[%clk 0:00:04]} 51. Kxf4 {[%clk 0:00:13]}  Rf5+ {[%clk 0:00:04]} 52. Kg3 {[%clk 0:00:13]}  Re8 {[%clk 0:00:04]} 53. Ne4 {[%clk 0:00:13]}  Be2 {[%clk 0:00:02]} 54. Rd3 {[%clk 0:00:14]}  Bxd3 {[%clk 0:00:02]} 55. cxd3 {[%clk 0:00:14]}  Be5+ {[%clk 0:00:03]} 56. Kg2 {[%clk 0:00:14]}  Bf4 {[%clk 0:00:04]} 57. Re1 {[%clk 0:00:13]}  Kh8 {[%clk 0:00:03]} 58. Bd4+ {[%clk 0:00:13]}  Kg8 {[%clk 0:00:03]} 59. Nf6+ {[%clk 0:00:13]}  Kf7 {[%clk 0:00:04]} 60. Rxe8 {[%clk 0:00:13]}  Rd5 {[%clk 0:00:04]} 61. Nxd5 {[%clk 0:00:12]} 1-0


[Site "https://www.chess.com"]

[Event "Titled Tuesday Blitz August 16 Late 2022"]
[White "Vlassov, Nikolai"]
[Black "Potapova, Margarita"]
[WhiteFideId "4103360"]
[BlackFideId "14126869"]
[WhiteElo "2324"]
[BlackElo "2225"]
[Result "1-0"]
[Round "09"]
[TimeControl "180+1"]
[Date "2022.08.16"]
[WhiteClock "0:00:41"]
[BlackClock "0:00:36"]

1. e4 {[%clk 0:03:00]}  c5 {[%clk 0:02:54]} 2. c3 {[%clk 0:02:59]}  d5 {[%clk 0:02:53]} 3. exd5 {[%clk 0:02:50]}  Qxd5 {[%clk 0:02:54]} 4. d4 {[%clk 0:02:50]}  Nf6 {[%clk 0:02:54]} 5. Nf3 {[%clk 0:02:47]}  e6 {[%clk 0:02:54]} 6. a3 {[%clk 0:02:47]}  cxd4 {[%clk 0:02:53]} 7. cxd4 {[%clk 0:02:47]}  Nc6 {[%clk 0:02:52]} 8. Nc3 {[%clk 0:02:48]}  Qd6 {[%clk 0:02:52]} 9. Be3 {[%clk 0:02:48]}  Be7 {[%clk 0:02:51]} 10. Qc2 {[%clk 0:02:49]}  O-O {[%clk 0:02:51]} 11. Bd3 {[%clk 0:02:50]}  g6 {[%clk 0:02:49]} 12. O-O {[%clk 0:02:49]}  Rd8 {[%clk 0:02:30]} 13. Rac1 {[%clk 0:02:47]}  Bd7 {[%clk 0:02:28]} 14. Qd2 {[%clk 0:02:46]}  a6 {[%clk 0:02:25]} 15. Bf4 {[%clk 0:02:41]}  e5 {[%clk 0:01:56]} 16. dxe5 {[%clk 0:02:39]}  Qe6 {[%clk 0:01:54]} 17. Ng5 {[%clk 0:02:26]}  Qb3 {[%clk 0:01:52]} 18. exf6 {[%clk 0:02:20]}  Bxf6 {[%clk 0:01:53]} 19. Nce4 {[%clk 0:02:15]}  Bxg5 {[%clk 0:01:20]} 20. Bxg5 {[%clk 0:02:08]}  Bf5 {[%clk 0:01:15]} 21. Bxd8 {[%clk 0:02:03]}  Rxd8 {[%clk 0:01:15]} 22. Rc3 {[%clk 0:01:45]}  Qe6 {[%clk 0:01:11]} 23. Qe3 {[%clk 0:01:30]}  Ne5 {[%clk 0:01:07]} 24. Bc2 {[%clk 0:01:22]}  Ng4 {[%clk 0:01:06]} 25. Qf4 {[%clk 0:01:16]}  Rd4 {[%clk 0:01:04]} 26. h3 {[%clk 0:01:07]}  Ne5 {[%clk 0:01:01]} 27. Qe3 {[%clk 0:01:00]}  Rd8 {[%clk 0:00:47]} 28. Ng5 {[%clk 0:00:57]}  Qf6 {[%clk 0:00:45]} 29. Bxf5 {[%clk 0:00:56]}  Qxf5 {[%clk 0:00:46]} 30. Nf3 {[%clk 0:00:53]}  Nc6 {[%clk 0:00:43]} 31. Re1 {[%clk 0:00:48]}  Kg7 {[%clk 0:00:40]} 32. Rc5 {[%clk 0:00:43]}  Qd7 {[%clk 0:00:36]} 33. Ne5 {[%clk 0:00:41]} 1-0


[Site "https://www.chess.com"]

[Event "Titled Tuesday Blitz August 16 Late 2022"]
[White "Zou, Chen"]
[Black "Tristan, Leonardo"]
[WhiteFideId "8610959"]
[BlackFideId "113816"]
[WhiteElo "2276"]
[BlackElo "2404"]
[Result "1-0"]
[Round "09"]
[TimeControl "180+1"]
[Date "2022.08.16"]
[WhiteClock "0:00:09"]
[BlackClock "0:00:45"]

1. e4 {[%clk 0:03:00]}  d5 {[%clk 0:03:00]} 2. exd5 {[%clk 0:03:00]}  Qxd5 {[%clk 0:03:00]} 3. Nc3 {[%clk 0:03:00]}  Qa5 {[%clk 0:03:01]} 4. d4 {[%clk 0:03:00]}  Nf6 {[%clk 0:03:01]} 5. Nf3 {[%clk 0:03:01]}  Bf5 {[%clk 0:03:01]} 6. Bc4 {[%clk 0:03:00]}  e6 {[%clk 0:03:02]} 7. Bd2 {[%clk 0:03:00]}  Bb4 {[%clk 0:03:02]} 8. a3 {[%clk 0:02:54]}  Bxc3 {[%clk 0:03:02]} 9. Bxc3 {[%clk 0:02:55]}  Qb6 {[%clk 0:03:03]} 10. d5 {[%clk 0:02:54]}  exd5 {[%clk 0:03:03]} 11. Bxd5 {[%clk 0:02:48]}  O-O {[%clk 0:03:03]} 12. O-O {[%clk 0:02:38]}  Bxc2 {[%clk 0:02:45]} 13. Bxf7+ {[%clk 0:02:31]}  Rxf7 {[%clk 0:02:46]} 14. Qxc2 {[%clk 0:02:31]}  Nc6 {[%clk 0:02:46]} 15. Rad1 {[%clk 0:02:24]}  Raf8 {[%clk 0:02:46]} 16. Ng5 {[%clk 0:02:18]}  Re7 {[%clk 0:02:41]} 17. Rfe1 {[%clk 0:01:56]}  Rxe1+ {[%clk 0:02:32]} 18. Rxe1 {[%clk 0:01:57]}  Nd4 {[%clk 0:02:33]} 19. Qd3 {[%clk 0:01:24]}  c5 {[%clk 0:02:30]} 20. Qc4+ {[%clk 0:00:57]}  Kh8 {[%clk 0:02:28]} 21. Nf7+ {[%clk 0:00:42]}  Kg8 {[%clk 0:02:29]} 22. Nh6+ {[%clk 0:00:19]}  Kh8 {[%clk 0:02:29]} 23. Re8 {[%clk 0:00:14]}  Ne2+ {[%clk 0:00:45]} 24. Kh1 {[%clk 0:00:09]} 1-0


[Site "https://www.chess.com"]